[Event "FIDE WYCC Girls U18 2023"]
[Site "Montesilvano"]
[Date "2023.11.17"]
[Round "5.11"]
[White "Liu, Kelsey"]
[Black "Sipos, Stefania"]
[Result "1-0"]
[ECO "B06"]
[WhiteElo "2051"]
[BlackElo "1932"]
[Annotator "NA"]
[PlyCount "81"]
[EventDate "2023.11.13"]
[EventType "swiss"]
[EventCountry "ITA"]
[SourceTitle "playchess.com"]
[Source "ChessBase"]
[SourceQuality "1"]
[TimeControl "40/5400+30:1800+30"]

1. e4 {[%emt 0:00:03]} g6 {[%emt 0:00:09]} 2. d4 {[%emt 0:00:09]} Bg7 {[%emt 0:00:06]} 3. Nf3 {[%emt 0:00:26]} d6 {[%emt 0:00:28]} 4. Bc4 {[%emt 0:00:33]} c6 {[%emt 0:01:01]} 5. Bb3 {[%emt 0:01:01]} Nf6 {[%emt 0:00:44]} 6. Qe2 {[%emt 0:01:48]} O-O {[%emt 0:04:53]} 7. O-O {[%emt 0:02:09]} Qc7 {[%emt 0:08:36]} 8. e5 {[%emt 0:08:07]} dxe5 {[%emt 0:06:12]} 9. dxe5 {[%emt 0:00:11]} Nd5 {[%emt 0:01:28]} 10. c4 {[%emt 0:05:01]} Nb6 {[%emt 0:06:18]} 11. Bf4 {[%emt 0:03:50]} Bg4 {[%emt 0:05:34]} 12. Nbd2 {[%emt 0:01:39]} N8d7 {[%emt 0:05:53]} 13. Qe3 {[%emt 0:02:57]} Qc8 {[%emt 0:13:16]} 14. h3 {[%emt 0:04:33]} Bxf3 {[%emt 0:03:05]} 15. Nxf3 {[%emt 0:00:09]} Kh8 {[%emt 0:04:39]} 16. h4 {[%emt 0:06:31]} h5 {[%emt 0:14:36]} 17. Ng5 {[%emt 0:04:55]} e6 {[%emt 0:04:43]} 18. f3 {[%emt 0:14:26]} Qc7 {[%emt 0:03:45]} 19. Rae1 {[%emt 0:04:54]} Nc8 {[%emt 0:02:02]} 20. Qc3 {[%emt 0:03:51]} Ne7 {[%emt 0:02:31]} 21. g4 {[%emt 0:01:01]} Rac8 {[%emt 0:06:24]} 22. Rf2 {[%emt 0:05:34]} b5 {[%emt 0:01:40]} 23. c5 {[%emt 0:05:37]} a5 {[%emt 0:01:26]} 24. Bh2 {[%emt 0:03:51]} Qa7 {[%emt 0:01:15]} 25. Qd4 {[%emt 0:02:54]} Rcd8 {[%emt 0:00:49]} 26. gxh5 {[%emt 0:03:24]} Nf5 {[%emt 0:01:11]} 27. Qg4 {[%emt 0:01:58]} Nh6 {[%emt 0:00:26]} 28. Qf4 {[%emt 0:02:41]} gxh5 {[%emt 0:00:29]} 29. Ne4 {[%emt 0:03:16]} Rg8 {[%emt 0:00:41]} 30. Kh1 {[%emt 0:00:18]} Nf5 {[%emt 0:00:30]} 31. Qg5 {[%emt 0:00:20]} Bh6 {[%emt 0:00:29]} 32. Qxh5 {[%emt 0:00:17]} Rg6 {[%emt 0:00:27]} 33. Rd1 {[%emt 0:04:02]} Ng7 {[%emt 0:00:19]} 34. Qxg6 {[%emt 0:00:37]} fxg6 {[%emt 0:00:05]} 35. Rg2 {[%emt 0:00:56]} Kh7 {[%emt 0:00:30]} 36. Bc2 {[%emt 0:00:50]} Nf5 {[%emt 0:00:23]} 37. h5 {[%emt 0:01:21]} Rg8 {[%emt 0:00:30]} 38. Rxd7+ {[%emt 0:00:13]} Qxd7 {[%emt 0:00:46]} 39. Nf6+ {[%emt 0:00:01]} Kh8 {[%emt 0:00:28]} 40. Nxd7 {[%emt 0:00:00]} Ne3 {[%emt 0:00:00]} 41. Rxg6 {[%emt 0:00:39]} 1-0

[Event "FIDE WYCC Girls U18 2023"]
[Site "Montesilvano"]
[Date "2023.11.17"]
[Round "5.12"]
[White "Shohradova, Lala"]
[Black "Striskova, Lucia"]
[Result "1-0"]
[ECO "A46"]
[WhiteElo "1846"]
[BlackElo "2039"]
[Annotator "NA"]
[PlyCount "55"]
[EventDate "2023.11.13"]
[EventType "swiss"]
[EventCountry "ITA"]
[SourceTitle "playchess.com"]
[Source "ChessBase"]
[SourceQuality "1"]
[TimeControl "40/5400+30:1800+30"]

1. d4 {[%emt 0:00:03]} Nf6 {[%emt 0:00:18]} 2. Nf3 {[%emt 0:00:13]} e6 {[%emt 0:00:11]} 3. c4 {[%emt 0:00:14]} d5 {[%emt 0:00:25]} 4. g3 {[%emt 0:00:45]} Bb4+ {[%emt 0:03:08]} 5. Nc3 {[%emt 0:02:10]} dxc4 {[%emt 0:02:52]} 6. Bg2 {[%emt 0:05:13]} b5 {[%emt 0:09:34]} 7. a4 {[%emt 0:08:26]} c6 {[%emt 0:01:17]} 8. axb5 {[%emt 0:11:54]} cxb5 {[%emt 0:00:12]} 9. Ne5 {[%emt 0:00:57]} Nd5 {[%emt 0:00:27]} 10. O-O {[%emt 0:00:58]} Bxc3 {[%emt 0:10:57]} 11. bxc3 {[%emt 0:00:53]} O-O {[%emt 0:03:45]} 12. Ba3 {[%emt 0:04:39]} Nxc3 {[%emt 0:02:35]} 13. Qc2 {[%emt 0:02:14]} Nd5 {[%emt 0:02:38]} 14. Bxf8 {[%emt 0:00:13]} Qxf8 {[%emt 0:00:10]} 15. Rfb1 {[%emt 0:01:27]} Qe8 {[%emt 0:02:43]} 16. Ra5 {[%emt 0:09:18]} a6 {[%emt 0:09:20]} 17. Be4 {[%emt 0:04:04]} h6 {[%emt 0:02:44]} 18. Rbxb5 {[%emt 0:14:02]} Qxb5 {[%emt 0:05:47]} 19. Rxb5 {[%emt 0:03:27]} axb5 {[%emt 0:00:05]} 20. Qb1 {[%emt 0:00:30]} Ba6 {[%emt 0:06:34]} 21. Nxf7 {[%emt 0:09:08]} Kxf7 {[%emt 0:02:29]} 22. Bxd5 {[%emt 0:00:27]} exd5 {[%emt 0:10:12]} 23. Qf5+ {[%emt 0:00:20]} Ke8 {[%emt 0:00:06]} 24. Qe6+ {[%emt 0:06:49]} Kd8 {[%emt 0:00:16]} 25. Qxd5+ {[%emt 0:00:35]} Kc8 {[%emt 0:00:10]} 26. Qxa8 {[%emt 0:00:32]} b4 {[%emt 0:00:07]} 27. Qf3 {[%emt 0:01:36]} c3 {[%emt 0:00:40]} 28. Qf8+ {[%emt 0:00:16]} 1-0

[Event "FIDE WYCC Girls U18 2023"]
[Site "Montesilvano"]
[Date "2023.11.17"]
[Round "5.13"]
[White "Menon, Gauri"]
[Black "Margadgua Erdenebayar"]
[Result "0-1"]
[ECO "D30"]
[WhiteElo "1821"]
[BlackElo "2013"]
[Annotator "NA"]
[PlyCount "56"]
[EventDate "2023.11.13"]
[EventType "swiss"]
[EventCountry "ITA"]
[SourceTitle "playchess.com"]
[Source "ChessBase"]
[SourceQuality "1"]
[TimeControl "40/5400+30:1800+30"]

1. d4 {[%emt 0:00:03]} d5 {[%emt 0:00:09]} 2. Nf3 {[%emt 0:00:25]} Nf6 {[%emt 0:00:45]} 3. c4 {[%emt 0:00:33]} e6 {[%emt 0:00:36]} 4. e3 {[%emt 0:01:04]} c6 {[%emt 0:00:52]} 5. Nbd2 {[%emt 0:01:48]} b6 {[%emt 0:01:59]} 6. b3 {[%emt 0:01:15]} Bb7 {[%emt 0:01:40]} 7. Bd3 {[%emt 0:01:00]} Be7 {[%emt 0:02:46]} 8. O-O {[%emt 0:00:50]} O-O {[%emt 0:00:22]} 9. Bb2 {[%emt 0:00:10]} Nbd7 {[%emt 0:00:41]} 10. Ne5 {[%emt 0:00:50]} dxc4 {[%emt 0:07:17]} 11. Ndxc4 {[%emt 0:09:49]} b5 {[%emt 0:06:58]} 12. Nxd7 {[%emt 0:02:03]} Nxd7 {[%emt 0:00:13]} 13. Ne5 {[%emt 0:05:58]} Nxe5 {[%emt 0:03:15]} 14. dxe5 {[%emt 0:00:10]} g6 {[%emt 0:00:12]} 15. Qe2 {[%emt 0:09:24]} a6 {[%emt 0:07:04]} 16. f4 {[%emt 0:07:39]} c5 {[%emt 0:03:04]} 17. Rad1 {[%emt 0:01:31]} Qb6 {[%emt 0:02:10]} 18. Qf2 {[%emt 0:09:03]} Qc6 {[%emt 0:09:31]} 19. h4 {[%emt 0:07:54]} Bxh4 {[%emt 0:04:40]} 20. Qe2 {[%emt 0:01:59]} Rfc8 {[%emt 0:05:59]} 21. Bb1 {[%emt 0:13:57]} Rd8 {[%emt 0:04:43]} 22. Qg4 {[%emt 0:05:00]} Rxd1 {[%emt 0:03:59]} 23. Rxd1 {[%emt 0:00:51]} Rd8 {[%emt 0:00:09]} 24. Rxd8+ {[%emt 0:00:41]} Bxd8 {[%emt 0:00:02]} 25. f5 {[%emt 0:09:23]} exf5 {[%emt 0:04:59]} 26. Bxf5 {[%emt 0:02:41]} h5 {[%emt 0:02:01]} 27. Qh3 {[%emt 0:03:37]} gxf5 {[%emt 0:02:49]} 28. Qg3+ {[%emt 0:00:04]} Qg6 0-1

[Event "FIDE WYCC Girls U18 2023"]
[Site "Montesilvano"]
[Date "2023.11.17"]
[Round "5.14"]
[White "Blanquet, Camille"]
[Black "Nguyen, Thien Ngan"]
[Result "1/2-1/2"]
[ECO "D35"]
[WhiteElo "1953"]
[BlackElo "1891"]
[Annotator "NA"]
[PlyCount "188"]
[EventDate "2023.11.13"]
[EventType "swiss"]
[EventCountry "ITA"]
[SourceTitle "playchess.com"]
[Source "ChessBase"]
[SourceQuality "1"]
[TimeControl "40/5400+30:1800+30"]

1. d4 {[%emt 0:00:03]} Nf6 {[%emt 0:00:19]} 2. c4 {[%emt 0:00:50]} e6 {[%emt 0:00:08]} 3. Nc3 {[%emt 0:00:33]} d5 {[%emt 0:00:09]} 4. cxd5 {[%emt 0:00:31]} Nxd5 {[%emt 0:00:08]} 5. e4 {[%emt 0:00:28]} Nxc3 {[%emt 0:00:08]} 6. bxc3 {[%emt 0:00:04]} b6 {[%emt 0:00:15]} 7. Nf3 {[%emt 0:04:23]} Bb7 {[%emt 0:01:06]} 8. Bb5+ {[%emt 0:05:23]} c6 {[%emt 0:00:08]} 9. Bd3 {[%emt 0:01:24]} Be7 {[%emt 0:01:42]} 10. Rb1 {[%emt 0:02:31]} O-O {[%emt 0:01:54]} 11. h4 {[%emt 0:03:18]} c5 {[%emt 0:01:29]} 12. h5 {[%emt 0:03:05]} cxd4 {[%emt 0:09:45]} 13. cxd4 {[%emt 0:04:03]} Nc6 {[%emt 0:02:34]} 14. h6 {[%emt 0:05:09]} g6 {[%emt 0:00:31]} 15. Bb2 {[%emt 0:16:38]} Qc7 {[%emt 0:26:36]} 16. O-O {[%emt 0:03:40]} Rfd8 {[%emt 0:04:52]} 17. Qd2 {[%emt 0:02:15]} Nb4 {[%emt 0:12:36]} 18. Rbc1 {[%emt 0:03:43]} Qd7 {[%emt 0:10:42]} 19. Bb1 {[%emt 0:00:54]} Rac8 {[%emt 0:02:48]} 20. Rfd1 {[%emt 0:07:21]} Rxc1 {[%emt 0:11:50]} 21. Rxc1 {[%emt 0:00:11]} Nc6 {[%emt 0:05:59]} 22. Rd1 {[%emt 0:04:55]} Na5 {[%emt 0:01:36]} 23. Ne5 {[%emt 0:06:14]} Qe8 {[%emt 0:00:30]} 24. Qf4 {[%emt 0:02:21]} f6 {[%emt 0:01:14]} 25. Ng4 {[%emt 0:01:03]} Qf7 {[%emt 0:00:23]} 26. Rc1 {[%emt 0:01:40]} Bc6 {[%emt 0:01:16]} 27. d5 {[%emt 0:03:37]} exd5 {[%emt 0:00:46]} 28. Nxf6+ {[%emt 0:00:41]} Bxf6 {[%emt 0:00:16]} 29. Bxf6 {[%emt 0:00:37]} Rf8 {[%emt 0:01:57]} 30. e5 {[%emt 0:00:33]} Nc4 {[%emt 0:00:14]} 31. Qd4 {[%emt 0:00:56]} Qe6 {[%emt 0:00:35]} 32. Bd3 {[%emt 0:01:04]} Bb5 {[%emt 0:00:30]} 33. Bc2 {[%emt 0:03:42]} Re8 {[%emt 0:00:58]} 34. Bb3 {[%emt 0:01:26]} Ba6 {[%emt 0:00:57]} 35. Qf4 {[%emt 0:01:55]} Nxe5 {[%emt 0:00:34]} 36. Rc7 {[%emt 0:02:07]} Nf7 {[%emt 0:00:25]} 37. Bg7 {[%emt 0:01:04]} Bc4 {[%emt 0:00:33]} 38. Bxc4 {[%emt 0:01:18]} dxc4 {[%emt 0:00:01]} 39. Rxc4 {[%emt 0:00:08]} b5 {[%emt 0:00:51]} 40. Rc7 {[%emt 0:00:00]} a6 {[%emt 0:00:00]} 41. Bc3 {[%emt 0:04:59]} Rd8 {[%emt 0:14:44]} 42. Qf3 {[%emt 0:07:12]} Qd5 {[%emt 0:10:13]} 43. Qxd5 {[%emt 0:08:40]} Rxd5 {[%emt 0:00:01]} 44. Bg7 {[%emt 0:00:07]} g5 {[%emt 0:01:25]} 45. Ra7 {[%emt 0:06:32]} Rd6 {[%emt 0:00:24]} 46. Ra8+ {[%emt 0:00:35]} Nd8 {[%emt 0:02:46]} 47. Be5 {[%emt 0:01:17]} Rd1+ {[%emt 0:00:25]} 48. Kh2 {[%emt 0:00:03]} Kf7 {[%emt 0:00:32]} 49. Rxa6 {[%emt 0:00:56]} Ne6 {[%emt 0:00:59]} 50. f3 {[%emt 0:01:26]} Rd5 {[%emt 0:00:31]} 51. Bc3 {[%emt 0:01:07]} Rc5 {[%emt 0:00:45]} 52. Bg7 {[%emt 0:01:22]} Rc2 {[%emt 0:00:22]} 53. Be5 {[%emt 0:00:57]} Re2 {[%emt 0:00:15]} 54. Bg3 {[%emt 0:00:52]} Nd4 {[%emt 0:01:51]} 55. Kg1 {[%emt 0:02:01]} Re6 {[%emt 0:01:21]} 56. Rxe6 {[%emt 0:01:15]} Kxe6 {[%emt 0:00:12]} 57. Be1 {[%emt 0:01:16]} Kf5 {[%emt 0:01:22]} 58. Kf2 {[%emt 0:00:17]} g4 {[%emt 0:00:33]} 59. Bc3 {[%emt 0:01:12]} Ne6 {[%emt 0:01:24]} 60. Ke3 {[%emt 0:02:19]} gxf3 {[%emt 0:00:28]} 61. gxf3 {[%emt 0:00:17]} Kg6 {[%emt 0:00:33]} 62. Ke4 {[%emt 0:02:29]} Ng5+ {[%emt 0:00:25]} 63. Kd5 {[%emt 0:00:34]} Nxf3 {[%emt 0:00:34]} 64. Bg7 {[%emt 0:00:30]} Kf7 {[%emt 0:00:32]} 65. Kc5 {[%emt 0:00:25]} Ke7 {[%emt 0:00:14]} 66. Kxb5 {[%emt 0:00:10]} Kd7 {[%emt 0:00:04]} 67. Kb6 {[%emt 0:01:18]} Kc8 {[%emt 0:00:09]} 68. Bf6 {[%emt 0:00:48]} Nd2 {[%emt 0:00:35]} 69. a4 {[%emt 0:00:43]} Kd7 {[%emt 0:00:56]} 70. Kb7 {[%emt 0:01:01]} Nc4 {[%emt 0:00:10]} 71. Bc3 {[%emt 0:00:13]} Nd6+ {[%emt 0:00:48]} 72. Kb8 {[%emt 0:00:37]} Nc4 {[%emt 0:00:44]} 73. a5 {[%emt 0:00:31]} Nxa5 {[%emt 0:00:25]} 74. Bxa5 {[%emt 0:00:05]} Ke7 {[%emt 0:00:08]} 75. Kc7 {[%emt 0:00:19]} Kf7 {[%emt 0:00:48]} 76. Kd7 {[%emt 0:00:09]} Kf8 {[%emt 0:00:20]} 77. Ke6 {[%emt 0:00:25]} Kg8 {[%emt 0:00:12]} 78. Bc3 {[%emt 0:01:00]} Kf8 {[%emt 0:00:06]} 79. Kf6 {[%emt 0:00:05]} Kg8 {[%emt 0:00:11]} 80. Bd4 {[%emt 0:00:06]} Kf8 {[%emt 0:00:21]} 81. Ke6 {[%emt 0:00:30]} Kg8 {[%emt 0:00:11]} 82. Be3 {[%emt 0:00:14]} Kf8 {[%emt 0:00:28]} 83. Bc1 {[%emt 0:00:32]} Kg8 {[%emt 0:00:10]} 84. Ba3 {[%emt 0:00:16]} Kh8 {[%emt 0:00:10]} 85. Kf6 {[%emt 0:00:11]} Kg8 {[%emt 0:00:10]} 86. Bb2 {[%emt 0:00:06]} Kf8 {[%emt 0:00:05]} 87. Ba3+ {[%emt 0:00:32]} Kg8 {[%emt 0:00:14]} 88. Ke7 {[%emt 0:00:22]} Kh8 {[%emt 0:00:06]} 89. Bb2+ {[%emt 0:00:27]} Kg8 {[%emt 0:00:10]} 90. Kf6 {[%emt 0:00:05]} Kf8 {[%emt 0:00:18]} 91. Be5 {[%emt 0:00:07]} Kg8 {[%emt 0:00:10]} 92. Ke6 {[%emt 0:00:07]} Kf8 {[%emt 0:00:05]} 93. Kf6 {[%emt 0:00:09]} Kg8 {[%emt 0:00:06]} 94. Ba1 {[%emt 0:00:08]} Kf8 {[%emt 0:00:05]} 1/2-1/2

[Event "FIDE WYCC Girls U18 2023"]
[Site "Montesilvano"]
[Date "2023.11.17"]
[Round "5.15"]
[White "Hakobyan, Astghik"]
[Black "Hyatt, Jessica"]
[Result "1-0"]
[ECO "C12"]
[WhiteElo "2073"]
[BlackElo "1818"]
[Annotator "NA"]
[PlyCount "71"]
[EventDate "2023.11.13"]
[EventType "swiss"]
[EventCountry "ITA"]
[SourceTitle "playchess.com"]
[Source "ChessBase"]
[SourceQuality "1"]
[TimeControl "40/5400+30:1800+30"]

1. e4 {[%emt 0:00:03]} e6 {[%emt 0:03:01]} 2. d4 {[%emt 0:00:22]} d5 {[%emt 0:00:08]} 3. Nc3 {[%emt 0:00:09]} Nf6 {[%emt 0:00:08]} 4. Bg5 {[%emt 0:00:06]} Bb4 {[%emt 0:00:08]} 5. e5 {[%emt 0:00:35]} h6 {[%emt 0:00:05]} 6. Be3 {[%emt 0:02:42]} Ne4 {[%emt 0:04:35]} 7. Qg4 {[%emt 0:10:58]} Kf8 {[%emt 0:12:02]} 8. a3 {[%emt 0:13:53]} Bxc3+ {[%emt 0:02:53]} 9. bxc3 {[%emt 0:00:02]} c5 {[%emt 0:00:20]} 10. Bd3 {[%emt 0:02:14]} Nxc3 {[%emt 0:05:33]} 11. dxc5 {[%emt 0:03:47]} Nc6 {[%emt 0:00:49]} 12. Nf3 {[%emt 0:00:57]} f5 {[%emt 0:09:54]} 13. exf6 {[%emt 0:24:51]} Qxf6 {[%emt 0:00:18]} 14. Nh4 {[%emt 0:00:30]} Ne5 {[%emt 0:09:41]} 15. Qg3 {[%emt 0:04:41]} Kg8 {[%emt 0:21:41]} 16. Bd4 {[%emt 0:04:03]} Nxd3+ {[%emt 0:00:41]} 17. Qxd3 {[%emt 0:00:02]} Qxh4 {[%emt 0:00:39]} 18. Qxc3 {[%emt 0:00:47]} Qe4+ {[%emt 0:00:49]} 19. Kf1 {[%emt 0:01:39]} Kh7 {[%emt 0:01:01]} 20. Re1 {[%emt 0:01:14]} Qg6 {[%emt 0:05:13]} 21. Re3 {[%emt 0:01:10]} Rg8 {[%emt 0:01:12]} 22. h4 {[%emt 0:05:34]} b6 {[%emt 0:03:20]} 23. c6 {[%emt 0:04:59]} Ba6+ {[%emt 0:03:01]} 24. Kg1 {[%emt 0:00:08]} Rac8 {[%emt 0:00:09]} 25. c7 {[%emt 0:01:31]} Bc4 {[%emt 0:00:23]} 26. Be5 {[%emt 0:00:50]} b5 {[%emt 0:04:34]} 27. Rhh3 {[%emt 0:02:28]} d4 {[%emt 0:06:25]} 28. Qxd4 {[%emt 0:00:16]} Qxc2 {[%emt 0:00:34]} 29. Rhg3 {[%emt 0:02:11]} Bd5 {[%emt 0:02:20]} 30. Qg4 {[%emt 0:05:17]} g5 {[%emt 0:02:42]} 31. Qb4 {[%emt 0:01:36]} Rxc7 {[%emt 0:00:51]} 32. Bxc7 {[%emt 0:00:12]} Qxc7 {[%emt 0:00:03]} 33. hxg5 {[%emt 0:01:11]} Rxg5 {[%emt 0:00:43]} 34. Rc3 {[%emt 0:02:01]} Qg7 {[%emt 0:00:39]} 35. Qb1+ {[%emt 0:00:43]} Rg6 {[%emt 0:00:35]} 36. Rxg6 {[%emt 0:00:17]} 1-0

[Event "FIDE WYCC Girls U18 2023"]
[Site "Montesilvano"]
[Date "2023.11.17"]
[Round "5.16"]
[White "Kurmangaliyeva, Liya"]
[Black "Lindstad, Livia"]
[Result "1-0"]
[ECO "E12"]
[WhiteElo "2236"]
[BlackElo "1848"]
[Annotator "ChessBase"]
[PlyCount "73"]
[EventDate "2023.11.13"]
[EventType "swiss"]
[EventCountry "ITA"]
[SourceTitle "playchess.com"]
[Source "ChessBase"]
[SourceQuality "1"]
[TimeControl "40/5400+30:1800+30"]

1. d4 {[%emt 0:00:11]} Nf6 {[%emt 0:00:23]} 2. c4 {[%emt 0:00:08]} e6 {[%emt 0:00:17]} 3. Nf3 {[%emt 0:00:07]} b6 {[%emt 0:00:38]} 4. a3 {[%emt 0:00:20]} Ba6 {[%emt 0:01:28]} 5. Qc2 {[%emt 0:00:29]} c5 {[%emt 0:02:59]} 6. e4 {[%emt 0:09:21]} d5 {[%emt 0:08:00]} 7. e5 {[%emt 0:02:37]} Nfd7 {[%emt 0:03:41]} 8. Bg5 {[%emt 0:12:44]} Be7 {[%emt 0:11:47]} 9. Bxe7 {[%emt 0:01:41]} Qxe7 {[%emt 0:02:16]} 10. cxd5 {[%emt 0:00:43]} exd5 {[%emt 0:02:43]} 11. Bxa6 {[%emt 0:04:48]} Nxa6 {[%emt 0:00:29]} 12. Nc3 {[%emt 0:09:53]} Nc7 {[%emt 0:07:23]} 13. O-O {[%emt 0:01:02]} O-O {[%emt 0:02:52]} 14. Rfe1 {[%emt 0:01:36]} c4 {[%emt 0:08:28]} 15. h4 {[%emt 0:06:32]} h6 {[%emt 0:04:10]} 16. Ne2 {[%emt 0:08:06]} Rfd8 {[%emt 0:06:11]} 17. Ng3 {[%emt 0:01:03]} Nf8 {[%emt 0:05:16]} 18. Nf5 {[%emt 0:02:49]} Qe6 {[%emt 0:00:56]} 19. h5 {[%emt 0:04:53]} Nh7 {[%emt 0:02:49]} 20. Re3 {[%emt 0:01:41]} Ne8 {[%emt 0:04:54]} 21. Nh2 {[%emt 0:00:22]} Ng5 {[%emt 0:01:44]} 22. Ng3 {[%emt 0:00:04]} Qc6 {[%emt 0:07:13]} 23. f4 {[%emt 0:04:47]} Ne6 {[%emt 0:02:36]} 24. Nf5 {[%emt 0:00:07]} Qd7 {[%emt 0:00:55]} 25. Rf1 {[%emt 0:00:16]} b5 {[%emt 0:02:24]} 26. Rg3 {[%emt 0:05:30]} Kf8 {[%emt 0:00:29]} 27. Ng4 {[%emt 0:00:26]} Qb7 {[%emt 0:01:15]} 28. Qd1 {[%emt 0:02:11]} Qb6 {[%emt 0:01:41]} 29. Kh2 {[%emt 0:00:41]} a5 {[%emt 0:02:17]} 30. Ngxh6 {[%emt 0:03:51]} Nxd4 {[%emt 0:02:30]} 31. Qg4 {[%emt 0:01:33]} Ne6 {[%emt 0:02:52]} 32. Nxf7 {[%emt 0:00:21]} Kxf7 {[%emt 0:02:05]} 33. Qg6+ {[%emt 0:00:05]} Kf8 {[%emt 0:00:01]} 34. h6 {[%emt 0:00:07]} Nf6 {[%emt 0:01:15]} 35. hxg7+ {[%emt 0:00:15]} Nxg7 {[%emt 0:00:31]} 36. Qxg7+ {[%emt 0:00:05]} Ke8 {[%emt 0:00:05]} 37. Qe7# {[%emt 0:00:03]} 1-0

[Event "FIDE WYCC Girls U18 2023"]
[Site "Montesilvano"]
[Date "2023.11.17"]
[Round "5.17"]
[White "Sevcikova, Lucia"]
[Black "Egger, Stefanie"]
[Result "1-0"]
[ECO "E33"]
[WhiteElo "2047"]
[BlackElo "1784"]
[Annotator "NA"]
[PlyCount "79"]
[EventDate "2023.11.13"]
[EventType "swiss"]
[EventCountry "ITA"]
[SourceTitle "playchess.com"]
[Source "ChessBase"]
[SourceQuality "1"]
[TimeControl "40/5400+30:1800+30"]

1. d4 {[%emt 0:00:03]} Nf6 {[%emt 0:00:07]} 2. c4 {[%emt 0:00:03]} e6 {[%emt 0:00:03]} 3. Nc3 {[%emt 0:00:04]} Bb4 {[%emt 0:00:09]} 4. Qc2 {[%emt 0:00:11]} Nc6 {[%emt 0:00:19]} 5. Nf3 {[%emt 0:01:12]} d6 {[%emt 0:00:52]} 6. Bd2 {[%emt 0:02:50]} O-O {[%emt 0:04:52]} 7. a3 {[%emt 0:08:25]} Bxc3 {[%emt 0:00:35]} 8. Bxc3 {[%emt 0:00:05]} a5 {[%emt 0:01:54]} 9. e4 {[%emt 0:05:51]} e5 {[%emt 0:03:26]} 10. Bd3 {[%emt 0:09:11]} Re8 {[%emt 0:02:09]} 11. O-O {[%emt 0:04:39]} Bg4 {[%emt 0:02:58]} 12. d5 {[%emt 0:01:49]} Ne7 {[%emt 0:02:24]} 13. Nd2 {[%emt 0:00:52]} Nh5 {[%emt 0:04:43]} 14. b4 {[%emt 0:06:38]} a4 {[%emt 0:02:26]} 15. f3 {[%emt 0:05:51]} Bd7 {[%emt 0:01:05]} 16. g3 {[%emt 0:02:56]} Ng6 {[%emt 0:01:06]} 17. Rf2 {[%emt 0:04:14]} Qg5 {[%emt 0:04:34]} 18. Kh1 {[%emt 0:01:05]} Rf8 {[%emt 0:18:52]} 19. Nf1 {[%emt 0:04:07]} Qd8 {[%emt 0:07:45]} 20. Ne3 {[%emt 0:03:03]} b6 {[%emt 0:14:04]} 21. Bd2 {[%emt 0:05:19]} Kh8 {[%emt 0:02:01]} 22. c5 {[%emt 0:01:48]} bxc5 {[%emt 0:09:11]} 23. bxc5 {[%emt 0:00:11]} dxc5 {[%emt 0:02:51]} 24. Qxc5 {[%emt 0:01:14]} c6 {[%emt 0:01:36]} 25. d6 {[%emt 0:05:51]} Re8 {[%emt 0:05:28]} 26. Bc4 {[%emt 0:03:33]} Kg8 {[%emt 0:00:35]} 27. Nf5 {[%emt 0:02:03]} Nf6 {[%emt 0:01:02]} 28. Rb1 {[%emt 0:07:06]} Rb8 {[%emt 0:00:54]} 29. Rxb8 {[%emt 0:00:37]} Qxb8 {[%emt 0:00:05]} 30. Bb4 {[%emt 0:00:35]} Kh8 {[%emt 0:01:18]} 31. Bxf7 {[%emt 0:01:18]} Rf8 {[%emt 0:01:39]} 32. Bxg6 {[%emt 0:00:32]} hxg6 {[%emt 0:00:05]} 33. Ne7 {[%emt 0:00:14]} Qe8 {[%emt 0:01:09]} 34. Be1 {[%emt 0:04:23]} Kh7 {[%emt 0:01:05]} 35. Qxe5 {[%emt 0:00:26]} Qf7 {[%emt 0:00:31]} 36. Qg5 {[%emt 0:00:57]} Ng8 {[%emt 0:00:40]} 37. Nxg8 {[%emt 0:01:59]} Kxg8 {[%emt 0:00:15]} 38. Qe7 {[%emt 0:01:06]} Qxe7 {[%emt 0:02:14]} 39. dxe7 {[%emt 0:00:04]} Rc8 {[%emt 0:00:11]} 40. Rd2 {[%emt 0:00:00]} 1-0